bitfinex-derivatives/quotes_BTCF0:USTF0_20251002
["timestamp","ask_amount","ask_price","bid_price","bid_amount"]
[1759411803094,0.0838731,119170.0,119160.0,0.03552]
[1759411803394,0.8425931,119170.0,119160.0,0.03552]
[1759411803594,0.32651002,119170.0,119160.0,0.1194004]
[1759411803796,0.09273054,119180.0,119170.0,0.1193933]
[1759411803999,0.0838629,119190.0,119180.0,0.03552]
[1759411804295,0.77116712,119200.0,119190.0,0.03552]
[1759411804595,0.083859,119190.0,119180.0,0.39632]
[1759411804802,0.083859,119190.0,119180.0,0.480186]
[1759411805003,0.842619,119190.0,119180.0,0.480186]
[1759411805502,0.083859,119190.0,119180.0,0.486186]
[1759411805695,0.41934874,119200.0,119190.0,0.119379]
[1759411805907,0.85163872,119200.0,119190.0,0.119379]
[1759411806095,0.85163872,119200.0,119190.0,0.03552]
[1759411806297,1.17814874,119200.0,119190.0,0.03552]
[1759411806503,1.17814874,119200.0,119190.0,0.1193791]
[1759411806697,0.00898292,119200.0,119190.0,0.80668912]
[1759411806903,0.15073209,119210.0,119200.0,0.1193723]
[1759411807300,0.06688039,119210.0,119200.0,0.1193723]
[1759411807502,0.41034492,119230.0,119220.0,0.01298]
[1759411807805,0.32651002,119240.0,119230.0,0.1193492]
[1759411808005,1.16918002,119240.0,119230.0,0.1193492]
[1759411808402,0.85176981,119240.0,119230.0,0.1193509]
[1759411808605,0.85176981,119240.0,119230.0,0.4801509]
[1759411808606,1.17827983,119240.0,119230.0,0.4801509]
[1759411808801,0.0838238,119240.0,119230.0,0.4801509]
[1759411809199,0.6447438,119240.0,119230.0,0.4801509]
[1759411809499,0.56992,119240.0,119230.0,0.4801509]
[1759411809702,0.009,119240.0,119230.0,1.20666092]
[1759411809908,2.1460009,119280.0,119260.0,0.1193303]
[1759411810106,2.16839283,119280.0,119270.0,0.03552]
[1759411810297,0.0838103,119260.0,119250.0,0.01298]
[1759411810501,0.8431703,119260.0,119250.0,0.01298]
[1759411810698,1.2351384,119260.0,119250.0,0.01298]
[1759411810910,0.90862838,119260.0,119250.0,0.39632]
[1759411811597,0.90862838,119260.0,119250.0,0.01298]
[1759411811997,0.90862838,119260.0,119250.0,0.03552]
[1759411812201,1.2351384,119260.0,119250.0,0.01298]
[1759411812401,1.2361384,119260.0,119250.0,0.01298]
[1759411812809,1.5969384,119260.0,119250.0,0.01298]
[1759411813399,1.27042838,119260.0,119250.0,0.01298]
[1759411813606,1.5969384,119260.0,119250.0,0.01298]
[1759411814309,0.0838172,119250.0,119240.0,0.01298]
[1759411814608,0.41032722,119250.0,119240.0,0.01298]
[1759411814810,0.41032722,119250.0,119240.0,0.03552]
[1759411815113,0.0838172,119250.0,119240.0,0.03552]
[1759411815311,0.0838172,119250.0,119240.0,0.1193443]
[1759411815518,0.8432972,119250.0,119240.0,0.39632]
[1759411815806,1.16980722,119250.0,119240.0,0.40032]
[1759411816214,1.16980722,119250.0,119240.0,0.01698]
[1759411816407,1.16980722,119250.0,119240.0,0.03952]
[1759411818407,0.8432172,119250.0,119240.0,0.40032]
[1759411818614,0.8431372,119250.0,119240.0,1.21065432]
[1759411819008,1.16964722,119250.0,119240.0,0.40032]
[1759411819311,0.8431372,119250.0,119240.0,0.03952]
[1759411820206,1.16964722,119250.0,119240.0,0.03952]
[1759411821109,1.53044722,119250.0,119240.0,0.01698]
[1759411821312,1.53044722,119250.0,119240.0,0.004]
[1759411821514,1.53044722,119250.0,119230.0,0.03453]
[1759411821515,0.0838243,119240.0,119230.0,0.03453]
[1759411822215,0.8433443,119240.0,119230.0,0.4791613]
[1759411822411,0.8433443,119240.0,119230.0,1.20537855]
[1759411822815,0.0838243,119240.0,119230.0,1.20537855]
[1759411823112,0.8433043,119240.0,119230.0,1.20537855]
[1759411823710,0.8433043,119240.0,119230.0,0.79733]
[1759411823911,0.8433043,119240.0,119230.0,1.20737815]
[1759411824111,1.16952155,119240.0,119230.0,0.03653]
[1759411824504,1.16952155,119240.0,119230.0,0.36274725]
[1759411824710,1.16952155,119240.0,119230.0,0.44857865]
[1759411825409,1.16952155,119240.0,119230.0,0.80937865]
[1759411825715,1.16952155,119240.0,119230.0,0.80537865]
[1759411825716,0.0848243,119240.0,119230.0,0.80537865]
[1759411825915,0.8444243,119240.0,119230.0,0.80537865]
[1759411826217,1.17064155,119240.0,119230.0,0.80537865]
[1759411826418,1.17064155,119240.0,119230.0,0.4791614]
[1759411826717,1.17064155,119240.0,119230.0,0.80537865]
[1759411827810,1.4968588,119240.0,119230.0,0.03453]
[1759411828012,0.0838314,119230.0,119210.0,0.37378]
[1759411828212,1.856553,119220.0,119210.0,0.01298]
[1759411828413,0.083845,119210.0,119200.0,0.01305]
[1759411828618,0.0838521,119200.0,119190.0,0.03425]
[1759411828918,1.16982935,119200.0,119190.0,0.03425]
[1759411829119,0.41006935,119200.0,119190.0,0.03425]
[1759411829314,0.0838497,119210.0,119190.0,0.4789096]
[1759411829511,0.0838497,119210.0,119200.0,0.03425]
[1759411829712,0.0838524,119200.0,119190.0,0.01275]
[1759411829908,1.0970869,119200.0,119190.0,0.01275]
[1759411830317,0.85285684,119200.0,119190.0,0.01275]
[1759411830512,0.4446524,119200.0,119190.0,0.1181089]
[1759411830716,1.2045324,119200.0,119190.0,0.1181089]
[1759411831315,1.2045324,119200.0,119190.0,0.04625]
[1759411831721,0.4446524,119200.0,119190.0,0.04625]
[1759411832015,1.2045724,119200.0,119190.0,0.04625]
[1759411833321,1.2044924,119200.0,119190.0,0.04625]
[1759411833521,0.4446524,119200.0,119190.0,0.04625]
[1759411833719,1.21369904,119200.0,119190.0,0.04625]
[1759411834119,1.62190348,119200.0,119190.0,0.04625]
[1759411834718,1.68886328,119200.0,119190.0,0.02475]
[1759411834914,2.49706772,119200.0,119190.0,0.012]
[1759411835120,0.0838662,119180.0,119170.0,0.01275]
[1759411835315,1.25203064,119180.0,119170.0,0.1181231]
[1759411835520,0.8438262,119180.0,119170.0,0.1181231]
[1759411836223,0.0838662,119180.0,119170.0,0.1181231]
[1759411836419,0.85287024,119190.0,119180.0,0.0838663]
[1759411836622,0.85287024,119190.0,119180.0,0.1181163]
[1759411836928,1.61279024,119190.0,119180.0,0.1181163]
[1759411837115,0.8437858,119190.0,119180.0,0.1181163]
[1759411837322,0.8437858,119190.0,119180.0,0.01275]
[1759411837517,0.0838658,119190.0,119180.0,0.1181163]
[1759411837827,0.8437858,119190.0,119180.0,0.1181163]
[1759411838427,0.8437858,119190.0,119180.0,0.1241163]
[1759411838830,0.0838658,119190.0,119180.0,0.1241163]
[1759411839028,0.8438658,119190.0,119180.0,0.1241163]
[1759411839728,1.61287024,119190.0,119180.0,0.04025]
[1759411839920,1.61287024,119190.0,119180.0,0.006]
[1759411840321,1.2046658,119190.0,119180.0,0.006]
[1759411840522,1.61287024,119190.0,119180.0,0.01875]
[1759411841026,1.2046658,119190.0,119180.0,0.01875]
[1759411841218,2.01287024,119190.0,119180.0,0.006]
[1759411841825,1.61287024,119190.0,119180.0,0.006]
[1759411842621,1.61287024,119190.0,119150.0,0.37361829]
[1759411842622,0.0838801,119160.0,119150.0,0.47900139]
[1759411842822,0.8442401,119160.0,119150.0,0.47900139]
[1759411844034,0.8442401,119160.0,119150.0,0.48800139]
[1759411844632,0.8442401,119160.0,119150.0,0.47900139]
[1759411844835,0.8442401,119160.0,119150.0,0.49100139]
[1759411845336,0.8442401,119160.0,119150.0,0.49100539]
[1759411845532,0.0838801,119160.0,119150.0,0.40711829]
[1759411845740,0.0838801,119160.0,119150.0,0.49100539]
[1759411846129,0.8442401,119160.0,119150.0,0.49100539]
[1759411846426,0.0838801,119160.0,119150.0,0.49100539]
[1759411846634,0.76900444,119170.0,119160.0,0.1181304]
[1759411846635,0.4446764,119170.0,119160.0,0.1181304]
[1759411847227,1.2049964,119170.0,119160.0,0.1181304]
[1759411847627,0.4446764,119170.0,119160.0,0.1181304]
[1759411847823,1.2049964,119170.0,119160.0,0.1271304]
[1759411848035,1.2049964,119170.0,119160.0,0.1361304]
[1759411848535,1.2049964,119170.0,119160.0,0.05225]
[1759411848930,0.4446764,119170.0,119160.0,0.1361301]
[1759411849138,1.2049964,119170.0,119160.0,0.1361301]
[1759411849435,1.2049964,119170.0,119160.0,0.05225]
[1759411849835,1.2049964,119170.0,119160.0,0.1361301]
[1759411850035,0.4446764,119170.0,119160.0,0.1361301]
[1759411850232,1.2049564,119170.0,119160.0,0.1361301]
[1759411852342,1.53165187,119170.0,119160.0,0.1361301]
[1759411852733,1.53165187,119170.0,119160.0,0.03075]
[1759411853241,1.53165187,119170.0,119160.0,0.05325]
[1759411853933,0.77737187,119170.0,119160.0,0.03525]
[1759411854140,1.53749187,119170.0,119160.0,0.03525]
[1759411854339,1.53749187,119170.0,119160.0,0.1191304]
[1759411854639,1.53149187,119170.0,119160.0,0.1191304]
[1759411854942,0.41357187,119170.0,119160.0,0.1191304]
[1759411855336,1.17365187,119170.0,119160.0,0.1191304]
[1759411855538,0.41057187,119170.0,119160.0,0.1191304]
[1759411855740,1.17661187,119170.0,119160.0,0.44582587]
[1759411856138,1.17661187,119170.0,119160.0,0.1191304]
[1759411856536,0.41657187,119170.0,119160.0,0.1191304]
[1759411856738,1.17657187,119170.0,119160.0,0.1191304]
[1759411857042,1.17657187,119170.0,119160.0,0.03525]
[1759411857240,1.19907015,119170.0,119160.0,0.03525]
[1759411858840,1.19907015,119170.0,119160.0,0.01275]
[1759411859352,1.19907015,119170.0,119160.0,0.03525]
[1759411860346,1.19907015,119170.0,119160.0,0.01275]
[1759411860651,0.0838804,119160.0,119150.0,0.01281829]
[1759411860851,1.12056962,119160.0,119150.0,0.01281829]
[1759411861146,1.12056962,119160.0,119150.0,0.03531829]
[1759411861347,0.10637868,119160.0,119150.0,0.44590086]
[1759411861546,0.86649868,119160.0,119150.0,0.44590086]
[1759411861752,0.02249828,119160.0,119150.0,1.53339633]
[1759411861952,0.43303212,119180.0,119170.0,0.1197331]
[1759411862153,0.43303212,119180.0,119170.0,0.80722857]
[1759411862154,1.19329397,119180.0,119170.0,0.80722857]
[1759411862344,0.43309397,119180.0,119170.0,0.80722857]
[1759411862546,0.0838613,119190.0,119180.0,0.083866]
[1759411862745,0.48630946,119200.0,119190.0,0.097219]
[1759411862947,0.17298888,119200.0,119190.0,0.80721447]
[1759411863149,0.76072,119200.0,119190.0,1.53390994]
[1759411863354,0.0838455,119210.0,119200.0,0.119712]
[1759411863646,0.48584949,119220.0,119210.0,0.1197049]
[1759411863849,0.93315749,119220.0,119210.0,0.80720037]
[1759411864052,1.23780847,119220.0,119210.0,0.4805049]
[1759411864246,0.0838337,119230.0,119220.0,0.1196979]
[1759411864442,0.10578911,119230.0,119220.0,0.1196979]
[1759411864641,0.86670911,119230.0,119220.0,0.1196979]
[1759411865157,0.8447537,119230.0,119220.0,0.03586]
[1759411865851,0.8537537,119230.0,119220.0,0.03586]
[1759411866755,1.26172373,119230.0,119220.0,0.03586]
[1759411866948,1.62252373,119230.0,119220.0,0.01336]
[1759411867156,0.0838379,119220.0,119210.0,0.01336]
[1759411867350,0.85260793,119220.0,119210.0,0.01336]
[1759411867848,0.56017822,119220.0,119210.0,0.03586]
[1759411868058,0.15220819,119220.0,119210.0,0.03586]
[1759411868252,0.10629355,119240.0,119230.0,0.0971911]
[1759411868454,0.03004058,119250.0,119240.0,0.03586]
[1759411868455,0.0838226,119250.0,119240.0,0.03586]
[1759411868651,0.8456626,119250.0,119240.0,0.03586]
[1759411868953,0.8456626,119250.0,119240.0,0.1196841]
[1759411869154,0.8456626,119250.0,119240.0,0.03586]
[1759411869754,0.8596626,119250.0,119240.0,0.03586]
[1759411869952,1.26763263,119250.0,119240.0,0.03586]
[1759411870152,0.0838311,119230.0,119220.0,0.4579977]
[1759411870354,0.8455911,119230.0,119220.0,0.4804977]
[1759411870556,0.8455911,119230.0,119220.0,0.03586]
[1759411870557,1.25356113,119230.0,119220.0,0.03586]
[1759411870750,1.25356113,119230.0,119220.0,0.01336]
[1759411870954,1.61436113,119230.0,119220.0,0.01336]
[1759411871150,0.8455911,119230.0,119220.0,0.03586]
[1759411871355,1.61436113,119230.0,119220.0,0.01336]
[1759411871750,1.61736113,119230.0,119220.0,0.01336]
[1759411871956,0.0838381,119220.0,119210.0,0.01336]
[1759411872158,0.0838381,119220.0,119210.0,0.03586]
[1759411872557,0.8456381,119220.0,119210.0,0.03586]
[1759411874357,1.2124381,119220.0,119210.0,0.03586]
[1759411874762,1.2122781,119220.0,119210.0,0.03586]
[1759411875060,1.62024813,119220.0,119210.0,0.03586]
[1759411875260,1.62124813,119220.0,119210.0,0.03586]
[1759411875449,1.26044813,119220.0,119210.0,0.03586]
[1759411875655,0.8524781,119220.0,119210.0,0.03586]
[1759411876362,0.0908381,119220.0,119210.0,0.1197052]
[1759411876561,0.0908381,119220.0,119210.0,0.4805052]
[1759411876761,0.0908381,119220.0,119210.0,0.39666]
[1759411876762,0.8523581,119220.0,119210.0,0.39666]
[1759411877167,0.007,119220.0,119210.0,0.88847523]
[1759411877360,0.8523181,119220.0,119210.0,1.28847523]
[1759411877557,0.8523181,119220.0,119210.0,0.8805052]
[1759411877756,0.8523181,119220.0,119210.0,1.28847523]
[1759411878855,0.0908381,119220.0,119210.0,0.8805052]
[1759411879060,0.8523581,119220.0,119210.0,0.8805052]
[1759411879665,0.8523581,119220.0,119210.0,0.03586]
[1759411882562,0.7684,119220.0,119210.0,0.83511163]
[1759411882764,0.007,119220.0,119210.0,1.23511163]
[1759411882966,0.34784,119220.0,119210.0,1.23511163]
[1759411885968,0.007,119220.0,119210.0,1.23511163]
[1759411886667,0.0908381,119220.0,119210.0,0.43586]
[1759411886859,0.0908381,119220.0,119190.0,0.01336]
[1759411886860,0.0838522,119200.0,119190.0,0.01336]
[1759411887060,1.19985863,119200.0,119190.0,0.01336]
[1759411887563,1.56065863,119200.0,119190.0,0.01336]
[1759411887969,1.2060522,119200.0,119190.0,0.01336]
[1759411889067,1.27364984,119200.0,119190.0,0.119089]
[1759411889768,0.91284984,119200.0,119190.0,0.119089]
[1759411890565,0.91284984,119200.0,119190.0,0.03523]
[1759411891876,0.92181055,119200.0,119190.0,0.119089]
[1759411892170,0.91284984,119200.0,119190.0,0.119089]
[1759411893673,0.91284984,119200.0,119190.0,0.03523]
[1759411893871,0.91284984,119200.0,119190.0,0.119089]
[1759411894572,0.91296984,119200.0,119190.0,0.119089]
[1759411895373,0.15144984,119200.0,119190.0,0.119089]
[1759411895569,0.91292984,119200.0,119190.0,0.119089]
[1759411895974,0.15144984,119200.0,119190.0,0.119089]
[1759411896174,0.91288984,119200.0,119190.0,0.119089]
[1759411897371,0.82903764,119200.0,119190.0,0.119089]
[1759411897572,0.001,119200.0,119190.0,0.83449543]
[1759411897772,0.001,119200.0,119190.0,1.23449543]
[1759411898173,0.51213332,119220.0,119210.0,0.119425]
[1759411898473,0.06749172,119220.0,119210.0,0.119425]
[1759411898679,0.45344168,119230.0,119220.0,0.1194179]
[1759411898872,1.21508168,119230.0,119220.0,0.1194179]
[1759411899076,1.206275,119230.0,119220.0,0.1194179]
[1759411899568,0.083835,119230.0,119220.0,0.1194179]
[1759411899878,0.845395,119230.0,119220.0,0.03558]
[1759411900075,0.0838379,119220.0,119210.0,0.01371]
[1759411900273,0.0838449,119210.0,119200.0,0.4583607]
[1759411900580,0.8454849,119210.0,119200.0,0.4802307]
[1759411900774,1.2062849,119210.0,119200.0,0.03558]
[1759411900975,1.56089133,119210.0,119200.0,0.01371]
[1759411901376,1.56089133,119210.0,119200.0,0.03558]
[1759411901979,1.20309133,119210.0,119200.0,0.1194319]
[1759411902175,1.20309133,119210.0,119200.0,0.03558]
[1759411902380,0.8454849,119210.0,119200.0,0.01371]
[1759411902973,0.8454849,119210.0,119200.0,0.03558]
[1759411903168,1.2092849,119210.0,119200.0,0.01371]
[1759411903476,0.083859,119190.0,119180.0,0.01371]
[1759411903683,1.56106543,119190.0,119180.0,0.01371]
[1759411904176,1.206459,119190.0,119180.0,0.01371]
[1759411904568,1.56106543,119190.0,119180.0,0.01371]
[1759411905379,1.206459,119190.0,119180.0,0.1194463]
[1759411905578,0.845659,119190.0,119180.0,0.1194463]
[1759411905779,0.845619,119190.0,119180.0,0.4802463]
[1759411906475,0.444659,119200.0,119190.0,0.0838592]
[1759411906684,0.083859,119200.0,119190.0,0.1194392]
[1759411906884,0.083859,119200.0,119190.0,0.8802392]
[1759411907082,0.0838498,119210.0,119200.0,0.1194277]
[1759411907689,0.8461298,119210.0,119200.0,0.1194277]
[1759411907983,0.8461298,119210.0,119200.0,0.4802277]
[1759411908678,0.8521298,119210.0,119200.0,0.4802277]
[1759411908878,0.8521298,119210.0,119200.0,0.39638]
[1759411909282,0.8461298,119210.0,119200.0,0.480232]
[1759411909478,0.8521298,119210.0,119200.0,0.119432]
[1759411910682,0.8521298,119210.0,119200.0,0.03558]
[1759411911185,1.20673623,119210.0,119200.0,0.01371]
[1759411911683,0.8521298,119210.0,119200.0,0.03481]
[1759411911986,0.0898498,119210.0,119200.0,0.1186622]
[1759411912182,0.8520498,119210.0,119200.0,0.1186622]
[1759411912980,0.8520498,119210.0,119200.0,0.03481]
[1759411913481,0.8520498,119210.0,119200.0,0.1186622]
[1759411913882,0.8519698,119210.0,119200.0,0.1186622]
[1759411914481,0.006,119210.0,119200.0,0.83406863]
[1759411914683,0.39252,119210.0,119200.0,1.29430596]
[1759411914986,0.0838333,119230.0,119220.0,0.1182581]
[1759411915788,0.8460733,119230.0,119220.0,0.1182581]
[1759411916685,0.8520733,119230.0,119220.0,0.1182581]
[1759411916885,0.8520733,119230.0,119220.0,0.01332]
[1759411917087,0.8520733,119230.0,119220.0,0.03442]
[1759411917380,0.8460733,119230.0,119220.0,0.03442]
[1759411917586,0.8490733,119230.0,119220.0,0.03442]
[1759411917882,0.0838381,119220.0,119210.0,0.07355733]
[1759411918087,0.0838381,119220.0,119210.0,0.01332]
[1759411918280,0.4446381,119220.0,119210.0,0.01332]
[1759411918582,0.79924453,119220.0,119210.0,0.01332]
[1759411918788,0.4446381,119220.0,119210.0,0.01332]
[1759411919187,0.8461581,119220.0,119210.0,0.4790652]
[1759411919489,0.8461181,119220.0,119210.0,0.4790652]
[1759411919891,0.8461181,119220.0,119210.0,0.1212652]
[1759411920080,0.8461181,119220.0,119210.0,0.03742]
[1759411920282,0.8461181,119220.0,119210.0,0.01632]
[1759411920579,0.8461181,119220.0,119210.0,0.03442]
[1759411921283,1.56152453,119220.0,119210.0,0.01332]
[1759411921482,1.56452453,119220.0,119210.0,0.01332]
[1759411921879,0.8491181,119220.0,119210.0,0.1182649]
[1759411922292,0.0868381,119220.0,119210.0,0.1182649]
[1759411922589,0.8489981,119220.0,119210.0,0.1182649]
[1759411922984,0.8489981,119220.0,119210.0,0.03442]
[1759411923184,0.0838381,119220.0,119210.0,0.03442]
[1759411923384,0.8488781,119220.0,119210.0,0.03442]
[1759411923681,0.0868381,119220.0,119210.0,0.118265]
[1759411923989,0.0868381,119220.0,119210.0,1.23367143]
[1759411924292,0.0958379,119220.0,119210.0,1.23367143]
[1759411924492,0.8346285,119220.0,119210.0,1.23367143]
[1759411924786,0.8346285,119220.0,119210.0,1.29390876]
[1759411924989,0.8286285,119220.0,119210.0,1.29390876]
[1759411925192,0.8286285,119220.0,119210.0,1.29690876]
[1759411925989,0.75532,119220.0,119210.0,1.29690876]
[1759411926196,0.75532,119220.0,119210.0,1.29390876]
[1759411926492,0.75532,119220.0,119210.0,1.29690876]
[1759411927087,0.15173787,119240.0,119230.0,0.1182508]
[1759411927286,0.4446217,119250.0,119240.0,0.1182438]
[1759411927487,0.4446146,119260.0,119250.0,0.1182368]
[1759411927696,1.2067746,119260.0,119250.0,0.1182368]
[1759411928288,1.2067346,119260.0,119250.0,0.1182368]
[1759411928690,1.2067346,119260.0,119250.0,0.0971368]
[1759411928995,1.27532984,119260.0,119250.0,0.1182371]
[1759411929195,0.52020984,119260.0,119250.0,0.1182371]
[1759411929495,1.28224984,119260.0,119250.0,0.1182371]
[1759411929692,1.27524984,119260.0,119250.0,0.1182371]
[1759411930692,0.45319988,119270.0,119260.0,0.1182297]
[1759411930884,1.21519988,119270.0,119260.0,0.1182297]
[1759411931091,0.4446058,119270.0,119260.0,0.1182297]
[1759411931382,0.4445985,119280.0,119270.0,0.118223]
[1759411931586,1.2066385,119280.0,119270.0,0.118223]
[1759411932292,0.4445929,119290.0,119280.0,0.083796]
[1759411932293,0.51083244,119290.0,119280.0,0.083796]
[1759411932491,1.27283244,119290.0,119280.0,0.118216]
[1759411932994,1.28174168,119290.0,119280.0,0.118216]
[1759411933389,1.28174168,119290.0,119280.0,0.1182157]
[1759411933597,1.28174168,119290.0,119280.0,0.03442]
[1759411934294,1.28474168,119290.0,119280.0,0.01332]
[1759411934695,1.28174168,119290.0,119280.0,0.01332]
[1759411934996,1.28474168,119290.0,119280.0,0.01332]
[1759411935793,0.87718811,119290.0,119280.0,0.01332]
[1759411936003,1.63918811,119290.0,119280.0,0.01332]
[1759411936497,1.28458168,119290.0,119280.0,0.03442]
[1759411936696,1.63918811,119290.0,119280.0,0.03442]
[1759411936997,1.28458168,119290.0,119280.0,0.03442]
[1759411938310,0.0837957,119280.0,119270.0,0.4796024]
[1759411938711,0.0837957,119280.0,119270.0,0.3958]
[1759411939609,0.8454357,119280.0,119270.0,0.3958]
[1759411940011,0.8454357,119280.0,119270.0,0.4796027]
[1759411940315,0.0837846,119300.0,119290.0,0.1186629]
[1759411940504,0.51269717,119310.0,119300.0,0.1186617]
[1759411940706,1.27441717,119310.0,119300.0,0.03488]
[1759411941008,1.27441717,119310.0,119300.0,0.0132]
[1759411941204,1.283245,119310.0,119300.0,0.0132]
[1759411941908,1.63785143,119310.0,119300.0,0.0132]
[1759411942309,1.69070435,119310.0,119300.0,0.0132]
[1759411942504,1.69370435,119310.0,119300.0,0.0132]
[1759411942809,0.0837887,119290.0,119280.0,0.0132]
[1759411943004,1.25284805,119290.0,119280.0,0.0132]
[1759411943314,0.8455487,119290.0,119280.0,0.4794757]
[1759411943809,0.8455487,119290.0,119280.0,0.03488]
[1759411944399,1.61380805,119290.0,119280.0,0.0162]
[1759411944600,1.61380805,119290.0,119280.0,0.0132]
[1759411944799,1.61380805,119290.0,119280.0,0.0162]
[1759411945003,1.25300805,119290.0,119280.0,0.0162]
[1759411945203,0.0837887,119290.0,119280.0,0.1230357]
[1759411945610,0.8456287,119290.0,119280.0,0.4838357]
[1759411946901,0.8456287,119290.0,119280.0,0.4808357]
[1759411947112,0.8486287,119290.0,119280.0,0.4808357]
[1759411947303,0.8516287,119290.0,119280.0,0.4808357]
[1759411947508,0.8486287,119290.0,119280.0,0.4808357]
[1759411947712,0.8486287,119290.0,119280.0,0.4838357]
[1759411948107,0.8456287,119290.0,119280.0,0.4838357]
[1759411948312,0.8456287,119290.0,119280.0,0.4868357]
[1759411949011,0.8456287,119290.0,119280.0,0.4808357]
[1759411950709,0.8456287,119290.0,119280.0,0.03924]
[1759411950910,0.0837865,119300.0,119290.0,0.119437]
[1759411951214,0.8457465,119300.0,119290.0,0.88769635]
[1759411951511,0.0837865,119300.0,119290.0,0.88769635]
[1759411952007,0.47744,119300.0,119290.0,1.28769635]
[1759411952314,0.5612216,119300.0,119290.0,1.28769635]
[1759411952515,0.0837816,119300.0,119290.0,1.28769635]
[1759411952711,0.0837787,119310.0,119300.0,0.1194316]
[1759411953013,0.4362987,119310.0,119300.0,0.88769095]
[1759411953200,0.4362987,119310.0,119300.0,0.39645]
[1759411953712,0.4362987,119310.0,119300.0,0.4802316]
[1759411954215,0.4362987,119310.0,119300.0,0.03565]
[1759411954613,0.4392987,119310.0,119300.0,0.03565]
[1759411954803,0.8030987,119310.0,119300.0,0.03565]
[1759411955602,0.4422987,119310.0,119300.0,0.03565]
[1759411956003,0.8514987,119310.0,119300.0,0.52689125]
[1759411956208,0.8514987,119310.0,119300.0,0.1194319]
[1759411956613,0.8514987,119310.0,119300.0,0.4802319]
[1759411956809,0.8514987,119310.0,119300.0,0.03565]
[1759411957410,1.61975805,119310.0,119300.0,0.03565]
[1759411957716,1.61975805,119310.0,119300.0,0.01261]
[1759411958314,0.0837816,119300.0,119290.0,0.0963986]
[1759411958613,0.0837816,119300.0,119290.0,0.1194386]
[1759411959209,0.10542462,119300.0,119290.0,0.1194386]
[1759411959717,0.86702462,119300.0,119290.0,0.1194386]
[1759411959920,0.86702462,119300.0,119290.0,0.88769795]
[1759411960111,0.8453417,119300.0,119290.0,0.88769795]
[1759411960720,0.8453417,119300.0,119290.0,0.4802386]
[1759411961216,0.8453417,119300.0,119290.0,0.4802387]
[1759411961422,0.8453417,119300.0,119290.0,0.1194387]
[1759411962514,0.0837887,119290.0,119280.0,0.01261]
[1759411962718,0.49124805,119290.0,119280.0,0.01261]
[1759411963119,0.0837887,119290.0,119280.0,0.1194457]
[1759411963714,0.0837887,119290.0,119280.0,0.4802457]
[1759411963915,0.8455487,119290.0,119280.0,0.88770505]
[1759411964114,0.76176,119290.0,119280.0,0.89070505]
[1759411964318,0.0837864,119300.0,119290.0,0.1194387]
[1759411964520,0.86707629,119300.0,119290.0,0.88769805]
[1759411964723,0.083779,119310.0,119300.0,0.1194259]
[1759411965016,0.86707232,119310.0,119300.0,0.88768525]
[1759411965213,0.15200637,119320.0,119310.0,0.1194247]
[1759411965418,0.10632645,119330.0,119320.0,0.1194176]
[1759411965607,0.10632645,119330.0,119320.0,0.88767695]
[1759411965608,0.86753223,119330.0,119320.0,0.88767695]
[1759411965812,0.86753223,119330.0,119320.0,0.44310935]
[1759411966010,0.86757223,119330.0,119320.0,0.1194176]
[1759411966820,0.87631825,119330.0,119320.0,0.1194176]
[1759411967020,0.0837535,119340.0,119330.0,0.0837594]
[1759411967225,0.86735357,119340.0,119330.0,0.4802094]
[1759411967921,0.86735357,119340.0,119330.0,0.39645]
[1759411968123,1.70336501,119340.0,119330.0,0.03565]
[1759411968416,1.29590566,119340.0,119330.0,0.03565]
[1759411968626,1.71236501,119340.0,119330.0,0.03565]
[1759411968822,1.30490566,119340.0,119330.0,0.03565]
[1759411969014,0.94410566,119340.0,119330.0,0.4802106]
[1759411969217,0.10154511,119340.0,119330.0,0.4802106]
[1759411969514,0.86262511,119340.0,119330.0,0.88766995]
[1759411970019,0.86262511,119340.0,119330.0,0.37341]
[1759411970219,1.27008446,119340.0,119330.0,0.01261]
[1759411970917,2.05227372,119340.0,119330.0,0.01261]
[1759411971124,0.0837676,119320.0,119310.0,0.01261]
[1759411971324,1.61398695,119320.0,119310.0,0.01261]
[1759411971724,1.61398695,119320.0,119310.0,0.03455]
[1759411971922,1.2065276,119320.0,119310.0,0.03455]
[1759411973021,1.2186876,119320.0,119310.0,0.03455]
[1759411973415,1.24007722,119320.0,119310.0,0.03455]
[1759411974423,1.62614695,119320.0,119310.0,0.01261]
[1759411974617,0.0837817,119300.0,119290.0,0.01332]
[1759411974819,0.8459017,119300.0,119290.0,0.01332]
[1759411975026,1.2067017,119300.0,119290.0,0.03526]
[1759411975730,0.8459017,119300.0,119290.0,0.39606]
[1759411975926,0.0837817,119300.0,119290.0,0.39606]
[1759411976128,0.0837775,119310.0,119300.0,0.119041]
[1759411976425,0.8462575,119310.0,119300.0,0.44271935]
[1759411976731,0.8462575,119310.0,119300.0,0.03526]
[1759411977728,0.8492575,119310.0,119300.0,0.03526]
[1759411978122,0.8492575,119310.0,119300.0,0.39606]
[1759411978320,0.003,119310.0,119300.0,0.88730095]
[1759411978632,0.0837716,119320.0,119310.0,0.1190346]
[1759411978824,0.8461716,119320.0,119310.0,0.4798346]
[1759411979432,0.8462116,119320.0,119310.0,0.4798346]
[1759411979833,0.8522116,119320.0,119310.0,0.4798346]
[1759411980332,0.8522116,119320.0,119310.0,0.39606]
[1759411980529,0.8462116,119320.0,119310.0,0.39606]
[1759411980734,0.0897716,119320.0,119310.0,0.4798345]
[1759411981332,0.006,119320.0,119310.0,0.88729385]
[1759411981535,0.7684,119320.0,119310.0,1.28729385]
[1759411982233,0.006,119320.0,119310.0,0.8798345]
[1759411982437,0.0897675,119320.0,119310.0,1.28729385]
[1759411982735,0.0897675,119320.0,119310.0,0.4798345]
[1759411982937,0.0897675,119320.0,119310.0,0.88729385]
[1759411983637,0.0897675,119320.0,119310.0,0.4798345]
[1759411984540,0.49722685,119320.0,119310.0,0.4798345]
[1759411984937,0.006,119320.0,119310.0,0.4798345]
[1759411985237,0.7684,119320.0,119310.0,0.88729385]
[1759411985540,0.006,119320.0,119310.0,1.28729385]
[1759411985935,0.06658758,119350.0,119340.0,0.1190136]
[1759411986134,0.2594314,119350.0,119340.0,0.4798136]
[1759411986941,0.2594314,119350.0,119340.0,0.39606]
[1759411987239,0.2654314,119350.0,119340.0,0.39606]
[1759411987430,0.2704314,119350.0,119340.0,0.39606]
[1759411987629,0.8574714,119350.0,119340.0,0.03526]
[1759411987836,1.26493075,119350.0,119340.0,0.03526]
[1759411988543,1.273657,119350.0,119340.0,0.03526]
[1759411988738,1.273657,119350.0,119340.0,0.4798135]
[1759411989241,0.41845935,119350.0,119340.0,0.4798135]
[1759411989445,0.7736,119350.0,119340.0,0.4798135]